[Event "Titled Tuesday Blitz February 21 Late 2023"]
[White "Koziorowicz, Michal"]
[Black "Kollars, Dmitrij"]
[WhiteFideId "21809194"]
[BlackFideId "12909572"]
[WhiteElo "2307"]
[BlackElo "2607"]
[Result "1-0"]
[Round "05"]
[TimeControl "180+2"]
[Date "2023.02.21"]
[WhiteClock "0:00:12"]
[BlackClock "0:00:09"]

1. e4 {[%clk 0:03:00]}  c6 {[%clk 0:02:56]} 2. d4 {[%clk 0:03:00]}  d5 {[%clk 0:02:57]} 3. e5 {[%clk 0:03:00]}  Bf5 {[%clk 0:02:55]} 4. Nc3 {[%clk 0:03:00]}  e6 {[%clk 0:02:52]} 5. g4 {[%clk 0:02:56]}  Bg6 {[%clk 0:02:52]} 6. Nge2 {[%clk 0:02:47]}  h6 {[%clk 0:02:43]} 7. Nf4 {[%clk 0:02:44]}  Bh7 {[%clk 0:02:44]} 8. h4 {[%clk 0:02:30]}  c5 {[%clk 0:02:41]} 9. g5 {[%clk 0:02:30]}  Bf5 {[%clk 0:02:34]} 10. g6 {[%clk 0:01:59]}  fxg6 {[%clk 0:02:35]} 11. Bd3 {[%clk 0:01:58]}  Ne7 {[%clk 0:02:01]} 12. Bxf5 {[%clk 0:01:47]}  Nxf5 {[%clk 0:02:02]} 13. Nxe6 {[%clk 0:01:46]}  Qd7 {[%clk 0:01:52]} 14. Nxd5 {[%clk 0:01:43]}  Na6 {[%clk 0:01:52]} 15. Ndf4 {[%clk 0:01:26]}  cxd4 {[%clk 0:01:45]} 16. Qg4 {[%clk 0:01:21]}  Bb4+ {[%clk 0:01:09]} 17. Bd2 {[%clk 0:01:15]}  Bxd2+ {[%clk 0:01:01]} 18. Kxd2 {[%clk 0:01:16]}  Qf7 {[%clk 0:01:01]} 19. Rag1 {[%clk 0:00:38]}  Rc8 {[%clk 0:00:45]} 20. Qxg6 {[%clk 0:00:16]}  Nb4 {[%clk 0:00:42]} 21. c3 {[%clk 0:00:15]}  dxc3+ {[%clk 0:00:43]} 22. bxc3 {[%clk 0:00:16]}  Nc6 {[%clk 0:00:39]} 23. Qxf5 {[%clk 0:00:16]}  g5 {[%clk 0:00:18]} 24. hxg5 {[%clk 0:00:14]}  Qd7+ {[%clk 0:00:18]} 25. Ke1 {[%clk 0:00:14]}  Ne7 {[%clk 0:00:17]} 26. Ng7+ {[%clk 0:00:13]}  Kd8 {[%clk 0:00:17]} 27. Qxd7+ {[%clk 0:00:13]}  Kxd7 {[%clk 0:00:18]} 28. gxh6 {[%clk 0:00:14]}  Rxc3 {[%clk 0:00:18]} 29. h7 {[%clk 0:00:14]}  Rc4 {[%clk 0:00:16]} 30. Ngh5 {[%clk 0:00:14]}  Re4+ {[%clk 0:00:15]} 31. Kf1 {[%clk 0:00:14]}  Rxe5 {[%clk 0:00:15]} 32. Rg7 {[%clk 0:00:12]}  Kc6 {[%clk 0:00:14]} 33. Ng6 {[%clk 0:00:11]}  Nxg6 {[%clk 0:00:11]} 34. Rxg6+ {[%clk 0:00:12]}  Kb5 {[%clk 0:00:10]} 35. Nf6 {[%clk 0:00:12]}  Rf5 {[%clk 0:00:10]} 36. Rg8 {[%clk 0:00:12]}  Rxh7 {[%clk 0:00:09]} 37. Nxh7 {[%clk 0:00:12]} 1-0


[Site "https://www.chess.com"]

[Event "Titled Tuesday Blitz February 21 Late 2023"]
[White "Horvath, Dominik"]
[Black "Deac, Bogdan-Daniel"]
[WhiteFideId "1642561"]
[BlackFideId "1226380"]
[WhiteElo "2523"]
[BlackElo "2700"]
[Result "1-0"]
[Round "05"]
[TimeControl "180+2"]
[Date "2023.02.21"]
[WhiteClock "0:00:22"]
[BlackClock "0:00:01"]

1. e4 {[%clk 0:02:11]}  d5 {[%clk 0:02:59]} 2. exd5 {[%clk 0:02:11]}  Nf6 {[%clk 0:03:00]} 3. d4 {[%clk 0:02:08]}  Nxd5 {[%clk 0:02:59]} 4. c4 {[%clk 0:02:08]}  Nf6 {[%clk 0:02:56]} 5. Nc3 {[%clk 0:02:09]}  Bf5 {[%clk 0:02:54]} 6. Nf3 {[%clk 0:02:08]}  e6 {[%clk 0:02:53]} 7. Be2 {[%clk 0:02:08]}  Nbd7 {[%clk 0:02:51]} 8. O-O {[%clk 0:02:08]}  c6 {[%clk 0:02:50]} 9. Nh4 {[%clk 0:02:08]}  Bg6 {[%clk 0:02:49]} 10. Nxg6 {[%clk 0:02:08]}  hxg6 {[%clk 0:02:49]} 11. Bf4 {[%clk 0:02:08]}  Be7 {[%clk 0:02:29]} 12. Re1 {[%clk 0:02:07]}  O-O {[%clk 0:02:28]} 13. Bf1 {[%clk 0:02:05]}  Nb6 {[%clk 0:02:28]} 14. Qd3 {[%clk 0:01:56]}  Qd7 {[%clk 0:02:03]} 15. Rad1 {[%clk 0:01:56]}  Rad8 {[%clk 0:02:03]} 16. Qf3 {[%clk 0:01:50]}  Rfe8 {[%clk 0:01:59]} 17. h4 {[%clk 0:01:47]}  Qc8 {[%clk 0:01:49]} 18. g3 {[%clk 0:01:45]}  a6 {[%clk 0:01:46]} 19. b3 {[%clk 0:01:45]}  Nbd7 {[%clk 0:01:39]} 20. Bg2 {[%clk 0:01:43]}  Bb4 {[%clk 0:01:34]} 21. Re2 {[%clk 0:01:40]}  Nf8 {[%clk 0:01:26]} 22. Na4 {[%clk 0:01:34]}  Ba5 {[%clk 0:01:17]} 23. Nc5 {[%clk 0:01:30]}  Bc7 {[%clk 0:01:09]} 24. Bg5 {[%clk 0:01:30]}  N8h7 {[%clk 0:01:08]} 25. Bc1 {[%clk 0:01:30]}  Bb6 {[%clk 0:00:47]} 26. Red2 {[%clk 0:01:22]}  e5 {[%clk 0:00:30]} 27. dxe5 {[%clk 0:01:23]}  Rxd2 {[%clk 0:00:30]} 28. Bxd2 {[%clk 0:01:23]}  Bxc5 {[%clk 0:00:28]} 29. exf6 {[%clk 0:01:23]}  Nxf6 {[%clk 0:00:29]} 30. Re1 {[%clk 0:01:17]}  Rxe1+ {[%clk 0:00:17]} 31. Bxe1 {[%clk 0:01:18]}  Qe6 {[%clk 0:00:18]} 32. Kf1 {[%clk 0:01:00]}  Bd4 {[%clk 0:00:13]} 33. Qe2 {[%clk 0:00:57]}  Qd7 {[%clk 0:00:12]} 34. Bb4 {[%clk 0:00:55]}  Ng4 {[%clk 0:00:11]} 35. Be1 {[%clk 0:00:54]}  Qf5 {[%clk 0:00:07]} 36. Be4 {[%clk 0:00:49]}  Qe6 {[%clk 0:00:04]} 37. Qd3 {[%clk 0:00:38]}  c5 {[%clk 0:00:03]} 38. Kg2 {[%clk 0:00:37]}  Nf6 {[%clk 0:00:02]} 39. f3 {[%clk 0:00:35]}  Nd7 {[%clk 0:00:03]} 40. Bd2 {[%clk 0:00:33]}  b6 {[%clk 0:00:02]} 41. Bd5 {[%clk 0:00:33]}  Qd6 {[%clk 0:00:03]} 42. Bf4 {[%clk 0:00:32]}  Qf6 {[%clk 0:00:03]} 43. Qe4 {[%clk 0:00:31]}  Be5 {[%clk 0:00:03]} 44. Be3 {[%clk 0:00:30]}  Kf8 {[%clk 0:00:01]} 45. Bb7 {[%clk 0:00:29]}  a5 {[%clk 0:00:01]} 46. Qd5 {[%clk 0:00:28]}  Qd6 {[%clk 0:00:01]} 47. f4 {[%clk 0:00:27]}  Qxd5+ {[%clk 0:00:01]} 48. Bxd5 {[%clk 0:00:27]}  Bd6 {[%clk 0:00:02]} 49. Kf3 {[%clk 0:00:27]}  f5 {[%clk 0:00:02]} 50. Bc6 {[%clk 0:00:25]}  Nf6 {[%clk 0:00:03]} 51. Bd2 {[%clk 0:00:23]}  Ke7 {[%clk 0:00:03]} 52. Bc3 {[%clk 0:00:23]}  Kf7 {[%clk 0:00:03]} 53. Bxf6 {[%clk 0:00:17]}  gxf6 {[%clk 0:00:04]} 54. Bd5+ {[%clk 0:00:18]}  Kg7 {[%clk 0:00:04]} 55. Be6 {[%clk 0:00:18]}  Kh6 {[%clk 0:00:05]} 56. Bd5 {[%clk 0:00:18]}  Kh5 {[%clk 0:00:04]} 57. Bf7 {[%clk 0:00:19]}  Kh6 {[%clk 0:00:05]} 58. Bd5 {[%clk 0:00:19]}  g5 {[%clk 0:00:05]} 59. Be6 {[%clk 0:00:17]}  Kg6 {[%clk 0:00:05]} 60. h5+ {[%clk 0:00:18]}  Kxh5 {[%clk 0:00:05]} 61. Bxf5 {[%clk 0:00:18]}  gxf4 {[%clk 0:00:05]} 62. gxf4 {[%clk 0:00:19]}  Kh6 {[%clk 0:00:04]} 63. Ke4 {[%clk 0:00:20]}  Kg7 {[%clk 0:00:05]} 64. Be6 {[%clk 0:00:20]}  Kf8 {[%clk 0:00:04]} 65. f5 {[%clk 0:00:20]}  Ke7 {[%clk 0:00:04]} 66. Kd5 {[%clk 0:00:21]}  Bf4 {[%clk 0:00:04]} 67. Kc6 {[%clk 0:00:21]}  Bd2 {[%clk 0:00:05]} 68. Kxb6 {[%clk 0:00:20]}  Kd6 {[%clk 0:00:05]} 69. Kb5 {[%clk 0:00:20]}  Bb4 {[%clk 0:00:05]} 70. Ka4 {[%clk 0:00:20]}  Kc7 {[%clk 0:00:05]} 71. a3 {[%clk 0:00:20]}  Bc3 {[%clk 0:00:05]} 72. Kb5 {[%clk 0:00:21]}  Kd6 {[%clk 0:00:05]} 73. Kb6 {[%clk 0:00:22]}  Bd2 {[%clk 0:00:01]} 74. Ka6 {[%clk 0:00:22]} 1-0


[Site "https://www.chess.com"]

[Event "Titled Tuesday Blitz February 21 Late 2023"]
[White "Bjelobrk, Igor"]
[Black "Svane, Rasmus"]
[WhiteFideId "4300726"]
[BlackFideId "4657101"]
[WhiteElo "2403"]
[BlackElo "2623"]
[Result "0-1"]
[Round "05"]
[TimeControl "180+2"]
[Date "2023.02.21"]
[WhiteClock "0:00:14"]
[BlackClock "0:00:06"]

1. d4 {[%clk 0:03:00]}  d5 {[%clk 0:02:59]} 2. c4 {[%clk 0:03:00]}  e6 {[%clk 0:03:00]} 3. g3 {[%clk 0:02:55]}  a6 {[%clk 0:02:55]} 4. Bg2 {[%clk 0:02:53]}  dxc4 {[%clk 0:02:55]} 5. Nf3 {[%clk 0:02:52]}  b5 {[%clk 0:02:54]} 6. Ne5 {[%clk 0:02:51]}  c6 {[%clk 0:02:54]} 7. O-O {[%clk 0:02:45]}  Bb7 {[%clk 0:02:53]} 8. b3 {[%clk 0:02:44]}  cxb3 {[%clk 0:02:53]} 9. Qxb3 {[%clk 0:02:45]}  Nf6 {[%clk 0:02:49]} 10. Rd1 {[%clk 0:02:43]}  Be7 {[%clk 0:02:48]} 11. Nc3 {[%clk 0:02:34]}  O-O {[%clk 0:02:48]} 12. Ne4 {[%clk 0:02:03]}  Nbd7 {[%clk 0:02:09]} 13. Nxc6 {[%clk 0:01:57]}  Bxc6 {[%clk 0:02:08]} 14. Nxf6+ {[%clk 0:01:57]}  Nxf6 {[%clk 0:02:01]} 15. Bxc6 {[%clk 0:01:58]}  Rb8 {[%clk 0:01:58]} 16. Bf3 {[%clk 0:01:50]}  Qb6 {[%clk 0:01:57]} 17. e4 {[%clk 0:01:44]}  Rbc8 {[%clk 0:01:53]} 18. Be3 {[%clk 0:01:43]}  Qa5 {[%clk 0:01:52]} 19. Rac1 {[%clk 0:01:30]}  h6 {[%clk 0:01:49]} 20. d5 {[%clk 0:01:28]}  Rxc1 {[%clk 0:01:46]} 21. Rxc1 {[%clk 0:01:28]}  e5 {[%clk 0:01:40]} 22. Kg2 {[%clk 0:01:26]}  Ne8 {[%clk 0:01:27]} 23. Rc6 {[%clk 0:01:24]}  Nd6 {[%clk 0:01:16]} 24. Bc5 {[%clk 0:01:22]}  Nc8 {[%clk 0:00:51]} 25. Rxc8 {[%clk 0:01:18]}  Rxc8 {[%clk 0:00:52]} 26. Bxe7 {[%clk 0:01:18]}  Qe1 {[%clk 0:00:50]} 27. Ba3 {[%clk 0:01:07]}  a5 {[%clk 0:00:43]} 28. d6 {[%clk 0:01:03]}  b4 {[%clk 0:00:42]} 29. Bb2 {[%clk 0:01:03]}  Qd2 {[%clk 0:00:37]} 30. d7 {[%clk 0:00:42]}  Qxd7 {[%clk 0:00:36]} 31. Bxe5 {[%clk 0:00:42]}  Qb5 {[%clk 0:00:30]} 32. Qb2 {[%clk 0:00:37]}  f6 {[%clk 0:00:28]} 33. Bf4 {[%clk 0:00:37]}  a4 {[%clk 0:00:28]} 34. e5 {[%clk 0:00:37]}  fxe5 {[%clk 0:00:25]} 35. Bxe5 {[%clk 0:00:36]}  a3 {[%clk 0:00:20]} 36. Qb3+ {[%clk 0:00:34]}  Kh8 {[%clk 0:00:09]} 37. Bf4 {[%clk 0:00:26]}  Rf8 {[%clk 0:00:08]} 38. h4 {[%clk 0:00:25]}  Qc5 {[%clk 0:00:07]} 39. Qd3 {[%clk 0:00:23]}  Qc3 {[%clk 0:00:06]} 40. Qd5 {[%clk 0:00:22]}  b3 {[%clk 0:00:06]} 41. Be5 {[%clk 0:00:18]}  Qxf3+ {[%clk 0:00:04]} 42. Qxf3 {[%clk 0:00:19]}  Rxf3 {[%clk 0:00:05]} 43. axb3 {[%clk 0:00:14]}  Rxb3 {[%clk 0:00:05]} 44. Kf1 {[%clk 0:00:14]}  Rb1+ {[%clk 0:00:05]} 45. Ke2 {[%clk 0:00:14]}  a2 {[%clk 0:00:06]} 0-1


[Site "https://www.chess.com"]

[Event "Titled Tuesday Blitz February 21 Late 2023"]
[White "Rasulov, Vugar"]
[Black "Costachi, Mihnea"]
[WhiteFideId "13402390"]
[BlackFideId "1217518"]
[WhiteElo "2523"]
[BlackElo "2476"]
[Result "0-1"]
[Round "05"]
[TimeControl "180+2"]
[Date "2023.02.21"]
[WhiteClock "0:00:05"]
[BlackClock "0:00:05"]

1. d4 {[%clk 0:02:56]}  Nf6 {[%clk 0:02:58]} 2. c4 {[%clk 0:02:56]}  c6 {[%clk 0:02:57]} 3. Nc3 {[%clk 0:02:55]}  d5 {[%clk 0:02:58]} 4. e3 {[%clk 0:02:55]}  g6 {[%clk 0:02:56]} 5. Nf3 {[%clk 0:02:54]}  Bg7 {[%clk 0:02:56]} 6. Be2 {[%clk 0:02:52]}  O-O {[%clk 0:02:57]} 7. O-O {[%clk 0:02:53]}  Bf5 {[%clk 0:02:56]} 8. Qb3 {[%clk 0:02:50]}  Qb6 {[%clk 0:02:54]} 9. cxd5 {[%clk 0:02:45]}  Qxb3 {[%clk 0:02:40]} 10. axb3 {[%clk 0:02:46]}  Nxd5 {[%clk 0:02:41]} 11. Bd2 {[%clk 0:02:41]}  Nd7 {[%clk 0:02:35]} 12. Rfc1 {[%clk 0:02:39]}  N7f6 {[%clk 0:02:25]} 13. Ne5 {[%clk 0:02:33]}  Rfd8 {[%clk 0:02:10]} 14. f3 {[%clk 0:02:30]}  Nxc3 {[%clk 0:02:03]} 15. bxc3 {[%clk 0:02:31]}  Nd7 {[%clk 0:02:01]} 16. Nc4 {[%clk 0:02:28]}  Be6 {[%clk 0:01:43]} 17. Na5 {[%clk 0:02:20]}  Rab8 {[%clk 0:01:40]} 18. b4 {[%clk 0:02:21]}  Rdc8 {[%clk 0:01:32]} 19. Nxb7 {[%clk 0:02:06]}  Rxb7 {[%clk 0:01:30]} 20. Ba6 {[%clk 0:02:06]}  Rcc7 {[%clk 0:01:30]} 21. Bxb7 {[%clk 0:02:07]}  Rxb7 {[%clk 0:01:31]} 22. Ra5 {[%clk 0:02:05]}  Bc4 {[%clk 0:01:26]} 23. Rca1 {[%clk 0:01:53]}  a6 {[%clk 0:01:26]} 24. Rxa6 {[%clk 0:01:45]}  Bxa6 {[%clk 0:01:25]} 25. Rxa6 {[%clk 0:01:46]}  Nb6 {[%clk 0:01:21]} 26. Kf2 {[%clk 0:01:40]}  f5 {[%clk 0:01:17]} 27. Ke2 {[%clk 0:01:40]}  Kf7 {[%clk 0:01:12]} 28. Kd3 {[%clk 0:01:41]}  e5 {[%clk 0:01:12]} 29. c4 {[%clk 0:01:38]}  e4+ {[%clk 0:01:07]} 30. fxe4 {[%clk 0:01:36]}  fxe4+ {[%clk 0:01:08]} 31. Kc3 {[%clk 0:01:34]}  Ke7 {[%clk 0:00:59]} 32. g4 {[%clk 0:01:10]}  Kd7 {[%clk 0:00:59]} 33. h4 {[%clk 0:01:10]}  Bf8 {[%clk 0:00:50]} 34. Kb3 {[%clk 0:01:09]}  Nc8 {[%clk 0:00:44]} 35. Ra1 {[%clk 0:01:04]}  Be7 {[%clk 0:00:40]} 36. h5 {[%clk 0:01:03]}  Ke6 {[%clk 0:00:36]} 37. Ra5 {[%clk 0:00:54]}  Bd6 {[%clk 0:00:29]} 38. Ra8 {[%clk 0:00:46]}  Rb8 {[%clk 0:00:28]} 39. Ra6 {[%clk 0:00:46]}  Rb6 {[%clk 0:00:28]} 40. Ra1 {[%clk 0:00:38]}  Rb7 {[%clk 0:00:24]} 41. hxg6 {[%clk 0:00:33]}  hxg6 {[%clk 0:00:24]} 42. Ra8 {[%clk 0:00:28]}  Ne7 {[%clk 0:00:23]} 43. Ra5 {[%clk 0:00:21]}  Kf6 {[%clk 0:00:20]} 44. Be1 {[%clk 0:00:20]}  Ke6 {[%clk 0:00:19]} 45. Ra8 {[%clk 0:00:19]}  Rb8 {[%clk 0:00:17]} 46. Ra6 {[%clk 0:00:19]}  Rb7 {[%clk 0:00:17]} 47. Ka4 {[%clk 0:00:10]}  Kd7 {[%clk 0:00:16]} 48. Kb3 {[%clk 0:00:09]}  Nc8 {[%clk 0:00:17]} 49. Ra2 {[%clk 0:00:08]}  Ra7 {[%clk 0:00:17]} 50. Rh2 {[%clk 0:00:08]}  Ke6 {[%clk 0:00:17]} 51. Rh8 {[%clk 0:00:08]}  Ne7 {[%clk 0:00:17]} 52. Rh7 {[%clk 0:00:05]}  Nc8 {[%clk 0:00:17]} 53. Rh6 {[%clk 0:00:04]}  Kf7 {[%clk 0:00:16]} 54. Bh4 {[%clk 0:00:04]}  Kg7 {[%clk 0:00:15]} 55. g5 {[%clk 0:00:03]}  Ne7 {[%clk 0:00:13]} 56. Bf2 {[%clk 0:00:03]}  Nf5 {[%clk 0:00:13]} 57. Rh1 {[%clk 0:00:04]}  Bg3 {[%clk 0:00:13]} 58. Bxg3 {[%clk 0:00:02]}  Nxg3 {[%clk 0:00:14]} 59. Re1 {[%clk 0:00:03]}  Nf5 {[%clk 0:00:13]} 60. b5 {[%clk 0:00:03]}  cxb5 {[%clk 0:00:13]} 61. c5 {[%clk 0:00:04]}  Kf7 {[%clk 0:00:14]} 62. Kb4 {[%clk 0:00:04]}  Ke6 {[%clk 0:00:13]} 63. Kxb5 {[%clk 0:00:04]}  Kd5 {[%clk 0:00:13]} 64. Kb6 {[%clk 0:00:04]}  Ra3 {[%clk 0:00:14]} 65. Kc7 {[%clk 0:00:03]}  Rxe3 {[%clk 0:00:13]} 66. Rh1 {[%clk 0:00:03]}  Nxd4 {[%clk 0:00:12]} 67. Rh6 {[%clk 0:00:03]}  Rc3 {[%clk 0:00:10]} 68. Rxg6 {[%clk 0:00:03]}  Rxc5+ {[%clk 0:00:11]} 69. Kd7 {[%clk 0:00:04]}  e3 {[%clk 0:00:11]} 70. Rd6+ {[%clk 0:00:04]}  Ke5 {[%clk 0:00:10]} 71. g6 {[%clk 0:00:05]}  e2 {[%clk 0:00:06]} 72. g7 {[%clk 0:00:06]}  e1=Q {[%clk 0:00:04]} 73. g8=Q {[%clk 0:00:06]}  Rc7+ {[%clk 0:00:03]} 74. Kxc7 {[%clk 0:00:06]}  Qa5+ {[%clk 0:00:03]} 75. Rb6 {[%clk 0:00:06]}  Qa7+ {[%clk 0:00:03]} 76. Rb7 {[%clk 0:00:06]}  Qc5+ {[%clk 0:00:03]} 77. Kb8 {[%clk 0:00:05]}  Nc6+ {[%clk 0:00:04]} 78. Kc8 {[%clk 0:00:04]}  Ne7+ {[%clk 0:00:04]} 79. Kd7 {[%clk 0:00:04]}  Nxg8 {[%clk 0:00:04]} 80. Rc7 {[%clk 0:00:05]}  Qd5+ {[%clk 0:00:05]} 81. Kc8 {[%clk 0:00:05]}  Nf6 {[%clk 0:00:06]} 82. Re7+ {[%clk 0:00:05]}  Kf5 {[%clk 0:00:06]} 83. Rc7 {[%clk 0:00:05]}  Qa8# {[%clk 0:00:05]} 0-1


[Site "https://www.chess.com"]

[Event "Titled Tuesday Blitz February 21 Late 2023"]
[White "Jaracz, Pawel"]
[Black "Anton Guijarro, David"]
[WhiteFideId "1102222"]
[BlackFideId "2285525"]
[WhiteElo "2467"]
[BlackElo "2690"]
[Result "0-1"]
[Round "05"]
[TimeControl "180+2"]
[Date "2023.02.21"]
[WhiteClock "0:00:04"]
[BlackClock "0:00:04"]

1. Nf3 {[%clk 0:03:00]}  d5 {[%clk 0:02:59]} 2. g3 {[%clk 0:02:57]}  Bg4 {[%clk 0:02:53]} 3. Bg2 {[%clk 0:02:56]}  e6 {[%clk 0:02:53]} 4. h3 {[%clk 0:02:55]}  Bh5 {[%clk 0:02:52]} 5. c4 {[%clk 0:02:54]}  c6 {[%clk 0:02:47]} 6. O-O {[%clk 0:02:50]}  Nd7 {[%clk 0:02:46]} 7. cxd5 {[%clk 0:02:41]}  exd5 {[%clk 0:02:44]} 8. d3 {[%clk 0:02:40]}  Bd6 {[%clk 0:02:35]} 9. Nc3 {[%clk 0:02:40]}  Ne7 {[%clk 0:02:34]} 10. Qb3 {[%clk 0:02:36]}  Nc5 {[%clk 0:02:33]} 11. Qc2 {[%clk 0:02:35]}  O-O {[%clk 0:02:26]} 12. e3 {[%clk 0:02:23]}  a5 {[%clk 0:02:19]} 13. Ne2 {[%clk 0:02:23]}  Bg6 {[%clk 0:02:12]} 14. Rd1 {[%clk 0:02:22]}  h6 {[%clk 0:02:04]} 15. Nf4 {[%clk 0:02:16]}  Bh7 {[%clk 0:01:56]} 16. b3 {[%clk 0:02:15]}  Ne6 {[%clk 0:01:47]} 17. Bb2 {[%clk 0:02:12]}  Nxf4 {[%clk 0:01:45]} 18. exf4 {[%clk 0:02:11]}  Re8 {[%clk 0:01:42]} 19. Qc3 {[%clk 0:02:03]}  Nf5 {[%clk 0:01:35]} 20. a3 {[%clk 0:01:29]}  Bf8 {[%clk 0:01:27]} 21. Re1 {[%clk 0:01:27]}  Qb6 {[%clk 0:01:27]} 22. Ne5 {[%clk 0:01:22]}  Qc5 {[%clk 0:00:52]} 23. Qd2 {[%clk 0:00:40]}  Qb6 {[%clk 0:00:51]} 24. Qc3 {[%clk 0:00:26]}  Red8 {[%clk 0:00:49]} 25. g4 {[%clk 0:00:17]}  Nh4 {[%clk 0:00:49]} 26. Nf3 {[%clk 0:00:13]}  Nxg2 {[%clk 0:00:47]} 27. Kxg2 {[%clk 0:00:14]}  d4 {[%clk 0:00:43]} 28. Qc4 {[%clk 0:00:12]}  c5 {[%clk 0:00:32]} 29. f5 {[%clk 0:00:13]}  Qc7 {[%clk 0:00:30]} 30. Re4 {[%clk 0:00:12]}  Kh8 {[%clk 0:00:28]} 31. Ne5 {[%clk 0:00:12]}  Bg8 {[%clk 0:00:28]} 32. f6 {[%clk 0:00:13]}  gxf6 {[%clk 0:00:28]} 33. Nf3 {[%clk 0:00:13]}  Qd7 {[%clk 0:00:18]} 34. a4 {[%clk 0:00:12]}  Bh7 {[%clk 0:00:14]} 35. Re2 {[%clk 0:00:10]}  Re8 {[%clk 0:00:14]} 36. Rae1 {[%clk 0:00:10]}  Rxe2 {[%clk 0:00:10]} 37. Rxe2 {[%clk 0:00:11]}  Re8 {[%clk 0:00:10]} 38. Rxe8 {[%clk 0:00:10]}  Qxe8 {[%clk 0:00:11]} 39. Qd5 {[%clk 0:00:09]}  b6 {[%clk 0:00:11]} 40. Qb7 {[%clk 0:00:08]}  Bxd3 {[%clk 0:00:09]} 41. Qxb6 {[%clk 0:00:08]}  Be4 {[%clk 0:00:08]} 42. Qxf6+ {[%clk 0:00:07]}  Bg7 {[%clk 0:00:07]} 43. Qf4 {[%clk 0:00:08]}  Qc6 {[%clk 0:00:05]} 44. Kg3 {[%clk 0:00:08]}  Kg8 {[%clk 0:00:04]} 45. Ne5 {[%clk 0:00:08]}  Qd5 {[%clk 0:00:04]} 46. Nc4 {[%clk 0:00:07]}  Bg6 {[%clk 0:00:04]} 47. Bc1 {[%clk 0:00:07]}  Qh1 {[%clk 0:00:04]} 48. Qf3 {[%clk 0:00:06]}  Qg1+ {[%clk 0:00:04]} 49. Qg2 {[%clk 0:00:06]}  Qxc1 {[%clk 0:00:04]} 50. h4 {[%clk 0:00:04]}  Qc3+ {[%clk 0:00:04]} 51. f3 {[%clk 0:00:04]}  Qxb3 {[%clk 0:00:05]} 52. Nd6 {[%clk 0:00:04]}  Qb8 {[%clk 0:00:04]} 0-1


[Site "https://www.chess.com"]

[Event "Titled Tuesday Blitz February 21 Late 2023"]
[White "Livaic, Leon"]
[Black "Perske, Thore"]
[WhiteFideId "14531534"]
[BlackFideId "12902195"]
[WhiteElo "2579"]
[BlackElo "2448"]
[Result "1-0"]
[Round "05"]
[TimeControl "180+2"]
[Date "2023.02.21"]
[WhiteClock "0:00:49"]
[BlackClock "0:00:11"]

1. d4 {[%clk 0:03:00]}  Nf6 {[%clk 0:02:57]} 2. Bg5 {[%clk 0:03:01]}  e6 {[%clk 0:02:57]} 3. Nd2 {[%clk 0:02:59]}  h6 {[%clk 0:02:56]} 4. Bh4 {[%clk 0:02:59]}  b6 {[%clk 0:02:56]} 5. e4 {[%clk 0:02:50]}  Be7 {[%clk 0:02:55]} 6. e5 {[%clk 0:02:48]}  Nd5 {[%clk 0:02:55]} 7. Bxe7 {[%clk 0:02:48]}  Nxe7 {[%clk 0:02:49]} 8. f4 {[%clk 0:02:42]}  Bb7 {[%clk 0:02:45]} 9. Ngf3 {[%clk 0:02:42]}  d6 {[%clk 0:02:38]} 10. Bb5+ {[%clk 0:02:39]}  Bc6 {[%clk 0:02:34]} 11. Qe2 {[%clk 0:02:38]}  Bxb5 {[%clk 0:02:33]} 12. Qxb5+ {[%clk 0:02:37]}  Qd7 {[%clk 0:02:34]} 13. Qxd7+ {[%clk 0:02:37]}  Nxd7 {[%clk 0:02:22]} 14. exd6 {[%clk 0:02:25]}  cxd6 {[%clk 0:02:22]} 15. Ne4 {[%clk 0:02:26]}  Nf5 {[%clk 0:02:09]} 16. c3 {[%clk 0:02:25]}  h5 {[%clk 0:02:04]} 17. Kf2 {[%clk 0:02:23]}  Ke7 {[%clk 0:02:03]} 18. g3 {[%clk 0:02:22]}  b5 {[%clk 0:01:49]} 19. h3 {[%clk 0:02:17]}  d5 {[%clk 0:01:48]} 20. Nc5 {[%clk 0:02:09]}  Nd6 {[%clk 0:01:43]} 21. Nd3 {[%clk 0:01:36]}  Ne4+ {[%clk 0:01:40]} 22. Kg2 {[%clk 0:01:37]}  a5 {[%clk 0:01:40]} 23. a3 {[%clk 0:01:36]}  Nb6 {[%clk 0:01:36]} 24. Rhe1 {[%clk 0:01:32]}  Nc4 {[%clk 0:01:34]} 25. Ng5 {[%clk 0:01:26]}  Ncd6 {[%clk 0:00:57]} 26. Nc5 {[%clk 0:01:19]}  Nxc5 {[%clk 0:00:27]} 27. dxc5 {[%clk 0:01:19]}  Nb7 {[%clk 0:00:25]} 28. b4 {[%clk 0:01:17]}  g6 {[%clk 0:00:19]} 29. Nf3 {[%clk 0:01:17]}  Ra6 {[%clk 0:00:19]} 30. Nd4 {[%clk 0:01:17]}  Rha8 {[%clk 0:00:16]} 31. Nxb5 {[%clk 0:01:16]}  axb4 {[%clk 0:00:16]} 32. cxb4 {[%clk 0:01:14]}  Kd7 {[%clk 0:00:14]} 33. Nd4 {[%clk 0:01:11]}  Kc7 {[%clk 0:00:13]} 34. Re2 {[%clk 0:01:01]}  Ra4 {[%clk 0:00:13]} 35. Rea2 {[%clk 0:00:59]}  Kd8 {[%clk 0:00:13]} 36. Nb5 {[%clk 0:00:56]}  Kd7 {[%clk 0:00:12]} 37. Nc3 {[%clk 0:00:56]}  R4a7 {[%clk 0:00:12]} 38. a4 {[%clk 0:00:56]}  Nd8 {[%clk 0:00:11]} 39. b5 {[%clk 0:00:56]}  Ra5 {[%clk 0:00:10]} 40. Ne2 {[%clk 0:00:50]}  f6 {[%clk 0:00:10]} 41. Nd4 {[%clk 0:00:50]}  e5 {[%clk 0:00:10]} 42. fxe5 {[%clk 0:00:50]}  fxe5 {[%clk 0:00:11]} 43. Nb3 {[%clk 0:00:51]}  R5a7 {[%clk 0:00:11]} 44. a5 {[%clk 0:00:51]}  Ne6 {[%clk 0:00:11]} 45. a6 {[%clk 0:00:49]}  d4 {[%clk 0:00:11]} 46. b6 {[%clk 0:00:49]} 1-0


[Site "https://www.chess.com"]

[Event "Titled Tuesday Blitz February 21 Late 2023"]
[White "Panesso Rivera, Henry"]
[Black "Gholami Orimi, Mahdi"]
[WhiteFideId "4402707"]
[BlackFideId "12558486"]
[WhiteElo "2342"]
[BlackElo "2420"]
[Result "0-1"]
[Round "05"]
[TimeControl "180+2"]
[Date "2023.02.21"]
[WhiteClock "0:02:17"]
[BlackClock "0:02:37"]

1. Nf3 {[%clk 0:03:00]}  g6 {[%clk 0:02:50]} 2. g3 {[%clk 0:02:58]}  Bg7 {[%clk 0:02:50]} 3. d4 {[%clk 0:02:57]}  d5 {[%clk 0:02:49]} 4. Bg2 {[%clk 0:02:57]}  Nf6 {[%clk 0:02:50]} 5. O-O {[%clk 0:02:56]}  c6 {[%clk 0:02:50]} 6. Ne5 {[%clk 0:02:56]}  O-O {[%clk 0:02:49]} 7. c4 {[%clk 0:02:55]}  dxc4 {[%clk 0:02:49]} 8. Na3 {[%clk 0:02:52]}  Be6 {[%clk 0:02:48]} 9. Nexc4 {[%clk 0:02:46]}  Qc8 {[%clk 0:02:46]} 10. e3 {[%clk 0:02:35]}  Rd8 {[%clk 0:02:45]} 11. Qe2 {[%clk 0:02:32]}  Bh3 {[%clk 0:02:40]} 12. Bd2 {[%clk 0:02:26]}  Bxg2 {[%clk 0:02:35]} 13. Kxg2 {[%clk 0:02:26]}  c5 {[%clk 0:02:36]} 14. dxc5 {[%clk 0:02:17]}  Qxc5 {[%clk 0:02:37]} 0-1


[Site "https://www.chess.com"]